[Event "GrandPrix_29.05"]
[Site "Chess.com"]
[Date "2020.05.29"]
[Round "1"]
[White "rusuvlad95"]
[Black "sergoy"]
[Result "0-1"]
[WhiteElo "2089"]
[BlackElo "2548"]
[TimeControl "600+2"]
[EndTime "9:21:26 PDT"]
[Termination "sergoy won by resignation"]

1. e4 {[%clk 0:09:59.5]} 1... c5 {[%clk 0:09:57.8]} 2. Nf3 {[%clk 0:09:58.1]}
2... d6 {[%clk 0:09:55.8]} 3. d4 {[%clk 0:09:58.5]} 3... cxd4 {[%clk 0:09:51.4]}
4. Nxd4 {[%clk 0:10:00.4]} 4... Nf6 {[%clk 0:09:48.4]} 5. Nc3 {[%clk 0:10:01.1]}
5... a6 {[%clk 0:09:49.6]} 6. Be2 {[%clk 0:09:46.2]} 6... e5 {[%clk 0:09:50]} 7.
Nb3 {[%clk 0:09:42.3]} 7... Be7 {[%clk 0:09:49.2]} 8. Be3 {[%clk 0:09:19.5]}
8... Be6 {[%clk 0:09:41.4]} 9. O-O {[%clk 0:08:34.2]} 9... O-O {[%clk 0:09:39]}
10. Kh1 {[%clk 0:06:37.5]} 10... Nbd7 {[%clk 0:09:37.4]} 11. f4 {[%clk
0:06:28.2]} 11... b5 {[%clk 0:09:09.8]} 12. Bf3 {[%clk 0:05:26.2]} 12... Rc8
{[%clk 0:09:05.5]} 13. f5 {[%clk 0:05:08.6]} 13... Bc4 {[%clk 0:09:04.9]} 14.
Rg1 {[%clk 0:05:01.9]} 14... b4 {[%clk 0:08:53.7]} 15. Ne2 {[%clk 0:04:52.8]}
15... Nb6 {[%clk 0:08:37.6]} 16. g4 {[%clk 0:04:37.8]} 16... d5 {[%clk
0:08:33.9]} 17. Ng3 {[%clk 0:04:27.1]} 17... dxe4 {[%clk 0:08:15.1]} 18. Nxe4
{[%clk 0:04:27.3]} 18... Nbd5 {[%clk 0:07:56.5]} 19. Bd2 {[%clk 0:04:17.5]}
19... Nxe4 {[%clk 0:07:15.5]} 20. Bxe4 {[%clk 0:04:19.4]} 20... Nf6 {[%clk
0:07:14.1]} 21. Bf3 {[%clk 0:04:09.6]} 21... Bd5 {[%clk 0:07:14.1]} 22. c3
{[%clk 0:03:36.6]} 22... Rc4 {[%clk 0:06:49.7]} 23. h3 {[%clk 0:01:57.9]} 23...
Qa8 {[%clk 0:06:47.6]} 24. Bxd5 {[%clk 0:01:51.6]} 24... Qxd5+ {[%clk
0:06:49.5]} 25. Kh2 {[%clk 0:01:48.3]} 25... a5 {[%clk 0:06:14.7]} 26. Be1
{[%clk 0:01:42.8]} 26... Rd8 {[%clk 0:05:38.3]} 27. Nd2 {[%clk 0:01:37.3]} 27...
Rcc8 {[%clk 0:05:04.9]} 28. cxb4 {[%clk 0:01:26.5]} 28... Bxb4 {[%clk
0:05:03.2]} 29. Rg2 {[%clk 0:01:14.1]} 29... e4 {[%clk 0:04:57]} 30. Qe2 {[%clk
0:01:11.4]} 30... Rc2 {[%clk 0:04:51.8]} 31. Rd1 {[%clk 0:00:45.6]} 31... Qe5+
{[%clk 0:04:40.4]} 32. Bg3 {[%clk 0:00:45.3]} 32... Qxb2 {[%clk 0:04:36.5]} 33.
Nc4 {[%clk 0:00:37.4]} 33... Rxd1 {[%clk 0:04:28.4]} 34. Qxc2 {[%clk 0:00:35.1]}
34... Qxc2 {[%clk 0:04:22.2]} 35. Rxc2 {[%clk 0:00:35.7]} 35... h6 {[%clk
0:04:22.7]} 36. a3 {[%clk 0:00:35.4]} 36... Be7 {[%clk 0:04:16.5]} 37. Nxa5
{[%clk 0:00:36.5]} 37... Bxa3 {[%clk 0:04:12.8]} 38. Nc4 {[%clk 0:00:37]} 38...
Bb4 {[%clk 0:04:11.1]} 39. Ne3 {[%clk 0:00:38]} 39... Rd3 {[%clk 0:04:10.7]} 40.
Bf4 {[%clk 0:00:36]} 40... Bd2 {[%clk 0:04:01.7]} 41. Ng2 {[%clk 0:00:34.5]}
41... e3 {[%clk 0:03:57.7]} 42. Kg1 {[%clk 0:00:17.4]} 42... Nd5 {[%clk
0:03:51.5]} 43. Kf1 {[%clk 0:00:17.7]} 43... Nc3 {[%clk 0:03:51.5]} 44. Nxe3
{[%clk 0:00:13.3]} 44... Bxe3 {[%clk 0:03:50.7]} 45. Bxe3 {[%clk 0:00:09.7]}
45... Rxe3 {[%clk 0:03:51]} 46. Kg2 {[%clk 0:00:10.2]} 46... Ne4 {[%clk
0:03:50.9]} 47. Rc8+ {[%clk 0:00:05.9]} 47... Kh7 {[%clk 0:03:51.7]} 48. Rc4
{[%clk 0:00:07.2]} 48... f6 {[%clk 0:03:47]} 49. Kh2 {[%clk 0:00:05.7]} 49...
Re2+ {[%clk 0:03:46.5]} 50. Kg1 {[%clk 0:00:06.9]} 50... Ng5 {[%clk 0:03:47.8]}
51. Rc3 {[%clk 0:00:06.1]} 51... Nf7 {[%clk 0:03:47.5]} 52. Kf1 {[%clk
0:00:05.9]} 52... Ra2 {[%clk 0:03:47.2]} 53. h4 {[%clk 0:00:06.9]} 53... Ne5
{[%clk 0:03:47.6]} 54. g5 {[%clk 0:00:07.5]} 54... hxg5 {[%clk 0:03:47.8]} 55.
hxg5 {[%clk 0:00:08.8]} 55... fxg5 {[%clk 0:03:49.3]} 56. Rc5 {[%clk 0:00:07.7]}
56... Nf3 {[%clk 0:03:48.1]} 57. Rc3 {[%clk 0:00:07.4]} 57... g4 {[%clk
0:03:48.7]} 58. Rb3 {[%clk 0:00:05.1]} 0-1

[Event "GrandPrix_29.05"]
[Site "Chess.com"]
[Date "2020.05.29"]
[Round "1"]
[White "WhiteCapital80"]
[Black "yamalchess"]
[Result "0-1"]
[WhiteElo "1769"]
[BlackElo "2339"]
[TimeControl "600+2"]
[EndTime "9:21:30 PDT"]
[Termination "yamalchess won by resignation"]

1. e4 {[%clk 0:09:59.9]} 1... e5 {[%clk 0:09:57.2]} 2. Nf3 {[%clk 0:09:59.6]}
2... Nc6 {[%clk 0:09:55.2]} 3. Bb5 {[%clk 0:09:56.9]} 3... a6 {[%clk 0:09:54.6]}
4. Ba4 {[%clk 0:09:58]} 4... Nf6 {[%clk 0:09:55]} 5. d4 {[%clk 0:09:59]} 5...
exd4 {[%clk 0:09:49.7]} 6. O-O {[%clk 0:09:58.7]} 6... Be7 {[%clk 0:09:42.1]} 7.
e5 {[%clk 0:09:59.1]} 7... Ne4 {[%clk 0:09:40.7]} 8. Nxd4 {[%clk 0:09:57.1]}
8... Nxd4 {[%clk 0:08:50.9]} 9. Qxd4 {[%clk 0:09:56.1]} 9... Nc5 {[%clk
0:08:49.6]} 10. Nc3 {[%clk 0:09:56.3]} 10... O-O {[%clk 0:08:41.2]} 11. Nd5
{[%clk 0:09:56.9]} 11... Nxa4 {[%clk 0:08:25.6]} 12. Qxa4 {[%clk 0:09:46.8]}
12... b5 {[%clk 0:06:22.7]} 13. Qd4 {[%clk 0:09:02.3]} 13... Bb7 {[%clk
0:05:57.6]} 14. Bf4 {[%clk 0:08:06.7]} 14... Re8 {[%clk 0:05:42.8]} 15. Nxe7+
{[%clk 0:07:45.3]} 15... Qxe7 {[%clk 0:05:38.2]} 16. Rad1 {[%clk 0:07:38]} 16...
Bc6 {[%clk 0:05:37.9]} 17. a3 {[%clk 0:07:18.6]} 17... Qe6 {[%clk 0:05:31.3]}
18. Bg3 {[%clk 0:06:47.6]} 18... Qf5 {[%clk 0:05:19.8]} 19. Rd2 {[%clk
0:06:31.5]} 19... Re6 {[%clk 0:05:06.8]} 20. f3 {[%clk 0:06:10.5]} 20... h5
{[%clk 0:05:01.6]} 21. h4 {[%clk 0:05:45.7]} 21... Rg6 {[%clk 0:04:55]} 22. Kh2
{[%clk 0:05:36]} 22... Kh7 {[%clk 0:03:52.8]} 23. Rc1 {[%clk 0:05:11]} 23... Re8
{[%clk 0:03:51.3]} 24. c4 {[%clk 0:04:54.7]} 24... Ree6 {[%clk 0:03:47.2]} 25.
cxb5 {[%clk 0:04:25]} 25... axb5 {[%clk 0:03:45.8]} 26. Qf4 {[%clk 0:04:08.2]}
26... Qxf4 {[%clk 0:03:29.2]} 27. Bxf4 {[%clk 0:04:08.8]} 27... Re8 {[%clk
0:03:12.9]} 28. b4 {[%clk 0:03:23.5]} 28... Ra8 {[%clk 0:03:11.4]} 29. Rc3
{[%clk 0:03:23.9]} 29... Re6 {[%clk 0:03:09.3]} 30. Rdd3 {[%clk 0:02:54.4]}
30... Kg6 {[%clk 0:03:04.6]} 31. g4 {[%clk 0:02:32.8]} 31... Ra7 {[%clk
0:03:01.5]} 32. Rc5 {[%clk 0:02:16.5]} 32... hxg4 {[%clk 0:01:58.5]} 33. fxg4
{[%clk 0:02:16.9]} 33... f6 {[%clk 0:01:59.4]} 34. Kg3 {[%clk 0:02:09.2]} 34...
fxe5 {[%clk 0:01:49.4]} 35. Rxe5 {[%clk 0:02:09.5]} 35... Rxe5 {[%clk
0:01:45.7]} 36. Bxe5 {[%clk 0:02:10.6]} 36... d6 {[%clk 0:01:20.8]} 37. Bb2
{[%clk 0:02:08.7]} 37... Be4 {[%clk 0:01:14.3]} 38. Re3 {[%clk 0:02:08.1]} 38...
d5 {[%clk 0:01:11.8]} 39. h5+ {[%clk 0:02:05.2]} 39... Kf7 {[%clk 0:01:03.6]}
40. Re2 {[%clk 0:02:02.5]} 40... c6 {[%clk 0:00:54.6]} 41. Rf2+ {[%clk 0:01:57]}
41... Kg8 {[%clk 0:00:55.4]} 42. Kf4 {[%clk 0:01:49.5]} 0-1

[Event "GrandPrix_29.05"]
[Site "Chess.com"]
[Date "2020.05.29"]
[Round "1"]
[White "Zadar321"]
[Black "vpantev"]
[Result "0-1"]
[WhiteElo "2028"]
[BlackElo "2172"]
[TimeControl "600+2"]
[EndTime "9:21:31 PDT"]
[Termination "vpantev won by resignation"]

1. e4 {[%clk 0:09:55.6]} 1... c6 {[%clk 0:10:00.2]} 2. Nc3 {[%clk 0:09:51.6]}
2... d5 {[%clk 0:10:00.7]} 3. Qf3 {[%clk 0:09:52]} 3... e6 {[%clk 0:09:35.5]} 4.
d4 {[%clk 0:09:48.4]} 4... dxe4 {[%clk 0:09:29]} 5. Qxe4 {[%clk 0:09:35.4]} 5...
Nf6 {[%clk 0:09:27.6]} 6. Qh4 {[%clk 0:09:31.7]} 6... Nd5 {[%clk 0:08:54.4]} 7.
Qxd8+ {[%clk 0:09:29]} 7... Kxd8 {[%clk 0:08:54.9]} 8. Bd2 {[%clk 0:09:27]} 8...
Nxc3 {[%clk 0:08:50.7]} 9. Bxc3 {[%clk 0:09:27.6]} 9... Nd7 {[%clk 0:08:51.4]}
10. Nf3 {[%clk 0:09:28.4]} 10... f6 {[%clk 0:08:33.7]} 11. O-O-O {[%clk
0:09:27.5]} 11... Nb6 {[%clk 0:08:33.9]} 12. Bd3 {[%clk 0:09:20]} 12... Nd5
{[%clk 0:08:15.7]} 13. Bd2 {[%clk 0:09:20.2]} 13... b5 {[%clk 0:07:54.5]} 14.
Rhe1 {[%clk 0:09:14]} 14... Bd6 {[%clk 0:07:32.4]} 15. g3 {[%clk 0:08:59.1]}
15... a5 {[%clk 0:07:22.6]} 16. Kb1 {[%clk 0:08:45.7]} 16... Bd7 {[%clk
0:07:20.1]} 17. c3 {[%clk 0:08:32]} 17... a4 {[%clk 0:07:13.8]} 18. a3 {[%clk
0:08:22.1]} 18... g5 {[%clk 0:06:46.2]} 19. h4 {[%clk 0:08:13.9]} 19... g4
{[%clk 0:06:39.3]} 20. Ng1 {[%clk 0:08:12.6]} 20... h5 {[%clk 0:06:38.7]} 21.
Ne2 {[%clk 0:08:13.1]} 21... Kc7 {[%clk 0:06:26.1]} 22. Rc1 {[%clk 0:08:12]}
22... Rab8 {[%clk 0:06:22.1]} 23. Ka1 {[%clk 0:08:07.6]} 23... Kb7 {[%clk
0:05:01.9]} 24. c4 {[%clk 0:08:06.9]} 24... bxc4 {[%clk 0:04:59.9]} 25. Rxc4
{[%clk 0:08:05.1]} 25... Ra8 {[%clk 0:04:59.4]} 26. Bc2 {[%clk 0:07:24.6]} 26...
Nb6 {[%clk 0:04:53]} 27. Rc3 {[%clk 0:07:24]} 27... Nd5 {[%clk 0:04:48.6]} 28.
Rc4 {[%clk 0:07:12]} 28... Nb6 {[%clk 0:04:49.1]} 29. Rc3 {[%clk 0:07:12]} 29...
Nd5 {[%clk 0:04:49.4]} 30. Rd3 {[%clk 0:07:13.1]} 30... Be8 {[%clk 0:04:35.6]}
31. Bc1 {[%clk 0:06:39.3]} 31... Bg6 {[%clk 0:04:06.2]} 32. Rd2 {[%clk
0:06:39.5]} 32... Bxc2 {[%clk 0:04:00.2]} 33. Rxc2 {[%clk 0:06:40.1]} 33... Kc7
{[%clk 0:04:01.4]} 34. Nc3 {[%clk 0:06:34.7]} 34... Kd7 {[%clk 0:03:43.9]} 35.
Ne4 {[%clk 0:06:18.3]} 35... Rhb8 {[%clk 0:03:23.7]} 36. Bd2 {[%clk 0:06:12.2]}
36... Rb3 {[%clk 0:03:17.4]} 37. Rec1 {[%clk 0:06:01.8]} 37... Ra6 {[%clk
0:03:17.3]} 38. Nc3 {[%clk 0:05:55.5]} 38... Nxc3 {[%clk 0:03:08.7]} 39. Bxc3
{[%clk 0:05:52.4]} 39... f5 {[%clk 0:03:04.1]} 40. Re2 {[%clk 0:05:44.8]} 40...
Ra8 {[%clk 0:03:01]} 41. Ka2 {[%clk 0:05:41.4]} 41... f4 {[%clk 0:02:51.6]} 42.
Rce1 {[%clk 0:05:34.6]} 42... fxg3 {[%clk 0:02:45.3]} 43. fxg3 {[%clk
0:05:29.5]} 43... Bxg3 {[%clk 0:02:40.7]} 44. Rf1 {[%clk 0:05:25.5]} 44... Re8
{[%clk 0:02:40.3]} 45. Bb4 {[%clk 0:05:01.4]} 45... Rf3 {[%clk 0:02:36.4]} 46.
Rh1 {[%clk 0:04:48.8]} 46... Bf2 {[%clk 0:02:32]} 47. Re5 {[%clk 0:04:37.2]}
47... Rf5 {[%clk 0:02:18.9]} 48. Re2 {[%clk 0:03:44.4]} 48... g3 {[%clk
0:02:17.8]} 49. Ree1 {[%clk 0:02:13.6]} 49... Bxe1 {[%clk 0:02:12.4]} 50. Rxe1
{[%clk 0:02:13.8]} 50... g2 {[%clk 0:02:08.6]} 51. Rg1 {[%clk 0:02:13.8]} 51...
Rg8 {[%clk 0:02:08.7]} 52. d5 {[%clk 0:01:45.1]} 52... cxd5 {[%clk 0:02:04.9]}
53. Bc5 {[%clk 0:01:38.3]} 53... Rf1 {[%clk 0:02:04.9]} 54. b3 {[%clk
0:01:36.7]} 54... Rxg1 {[%clk 0:02:04.9]} 55. Bxg1 {[%clk 0:01:37.5]} 55...
axb3+ {[%clk 0:02:05.4]} 56. Kxb3 {[%clk 0:01:38.1]} 56... Rf8 {[%clk
0:02:06.7]} 0-1

[Event "GrandPrix_29.05"]
[Site "Chess.com"]
[Date "2020.05.29"]
[Round "1"]
[White "nikosgal"]
[Black "Pultis"]
[Result "1-0"]
[WhiteElo "2286"]
[BlackElo "2225"]
[TimeControl "600+2"]
[EndTime "9:21:34 PDT"]
[Termination "nikosgal won on time"]

1. d4 {[%clk 0:09:53.6]} 1... Nf6 {[%clk 0:09:56.8]} 2. c4 {[%clk 0:09:51.7]}
2... g6 {[%clk 0:09:56.6]} 3. Nc3 {[%clk 0:09:51.9]} 3... d5 {[%clk 0:09:57.6]}
4. cxd5 {[%clk 0:09:23.2]} 4... Nxd5 {[%clk 0:09:59.5]} 5. Na4 {[%clk
0:09:24.2]} 5... Bf5 {[%clk 0:09:40.2]} 6. f3 {[%clk 0:09:23.4]} 6... e5 {[%clk
0:08:43.1]} 7. g3 {[%clk 0:08:13.1]} 7... Bb4+ {[%clk 0:07:34.7]} 8. Kf2 {[%clk
0:08:11.5]} 8... e4 {[%clk 0:07:33.5]} 9. Bh3 {[%clk 0:07:56.3]} 9... e3+ {[%clk
0:06:25.4]} 10. Kg2 {[%clk 0:07:55]} 10... Bxh3+ {[%clk 0:06:25.6]} 11. Nxh3
{[%clk 0:07:54.2]} 11... Nc6 {[%clk 0:06:27.5]} 12. a3 {[%clk 0:07:47.8]} 12...
Be7 {[%clk 0:06:08.1]} 13. Qd3 {[%clk 0:07:42.6]} 13... O-O {[%clk 0:05:50.6]}
14. Rd1 {[%clk 0:07:27.8]} 14... Bf6 {[%clk 0:05:49.8]} 15. Nc5 {[%clk
0:07:12.8]} 15... Bxd4 {[%clk 0:05:35.6]} 16. Nxb7 {[%clk 0:07:10.6]} 16... Qf6
{[%clk 0:05:08]} 17. Na5 {[%clk 0:05:59]} 17... Nxa5 {[%clk 0:03:59.9]} 18. Qxd4
{[%clk 0:05:59.4]} 18... Qxd4 {[%clk 0:04:01.1]} 19. Rxd4 {[%clk 0:06:01.3]}
19... Nb3 {[%clk 0:04:02.7]} 20. Rxd5 {[%clk 0:06:02.7]} 20... Nxa1 {[%clk
0:04:03.8]} 21. Bxe3 {[%clk 0:06:04.4]} 21... a5 {[%clk 0:03:49.6]} 22. Nf4
{[%clk 0:05:52.1]} 22... a4 {[%clk 0:03:45.3]} 23. Rc5 {[%clk 0:05:45.4]} 23...
Rab8 {[%clk 0:03:18.9]} 24. Nd3 {[%clk 0:05:44]} 24... Rb7 {[%clk 0:03:09.5]}
25. Rc4 {[%clk 0:05:40.2]} 25... Ra8 {[%clk 0:03:07.7]} 26. Kf2 {[%clk
0:05:36.3]} 26... Nb3 {[%clk 0:03:04.4]} 27. Bf4 {[%clk 0:05:28.8]} 27... c5
{[%clk 0:03:01.5]} 28. Be5 {[%clk 0:05:24.1]} 28... Rb5 {[%clk 0:01:39.2]} 29.
Bc3 {[%clk 0:05:18.5]} 29... f5 {[%clk 0:01:40.5]} 30. h4 {[%clk 0:05:17.3]}
30... Kf7 {[%clk 0:01:41.7]} 31. h5 {[%clk 0:05:15.6]} 31... Ke6 {[%clk
0:01:11.4]} 32. Nf4+ {[%clk 0:04:41.4]} 32... Kf7 {[%clk 0:01:12.3]} 33. hxg6+
{[%clk 0:04:32]} 33... hxg6 {[%clk 0:01:14.2]} 34. Nd3 {[%clk 0:04:33.2]} 34...
Ke6 {[%clk 0:00:35.5]} 35. Rh4 {[%clk 0:04:24.2]} 35... Rb6 {[%clk 0:00:14.1]}
36. Nf4+ {[%clk 0:04:09.2]} 36... Kd7 {[%clk 0:00:10.8]} 37. Rh7+ {[%clk
0:04:08.9]} 37... Kc8 {[%clk 0:00:10.4]} 38. Rg7 {[%clk 0:04:03.5]} 38... Nd4
{[%clk 0:00:11]} 39. Nxg6 {[%clk 0:04:01]} 39... Ne6 {[%clk 0:00:10.8]} 40. Re7
{[%clk 0:03:29.5]} 40... Nd4 {[%clk 0:00:11.6]} 41. Nf4 {[%clk 0:03:26]} 41...
Nc6 {[%clk 0:00:10.6]} 42. Rf7 {[%clk 0:03:22.7]} 42... Ra7 {[%clk 0:00:10.7]}
43. Rxf5 {[%clk 0:03:23]} 43... Rb5 {[%clk 0:00:11.4]} 44. g4 {[%clk 0:03:21.1]}
44... Rd7 {[%clk 0:00:11.2]} 45. g5 {[%clk 0:03:20.1]} 45... Ne7 {[%clk
0:00:10.5]} 46. Rf8+ {[%clk 0:03:16.1]} 46... Kb7 {[%clk 0:00:10.5]} 47. g6
{[%clk 0:03:16.1]} 47... Rb6 {[%clk 0:00:10.4]} 48. g7 {[%clk 0:03:16.4]} 48...
Rh6 {[%clk 0:00:03.1]} 49. Rf7 {[%clk 0:03:16.8]} 49... Kc6 {[%clk 0:00:02.5]}
50. Rxe7 {[%clk 0:03:15.5]} 50... Rd8 {[%clk 0:00:03.5]} 51. Rf7 {[%clk
0:03:13.8]} 1-0

[Event "GrandPrix_29.05"]
[Site "Chess.com"]
[Date "2020.05.29"]
[Round "1"]
[White "chansen64"]
[Black "Martin_Petrov2000"]
[Result "0-1"]
[WhiteElo "2098"]
[BlackElo "2552"]
[TimeControl "600+2"]
[EndTime "9:21:36 PDT"]
[Termination "Martin_Petrov2000 won by resignation"]

1. Nf3 {[%clk 0:09:59.9]} 1... c5 {[%clk 0:09:56.3]} 2. c4 {[%clk 0:09:58.4]}
2... Nc6 {[%clk 0:09:28]} 3. g3 {[%clk 0:09:57.9]} 3... e5 {[%clk 0:09:27.6]} 4.
Nc3 {[%clk 0:09:57.7]} 4... g6 {[%clk 0:09:23.1]} 5. Bg2 {[%clk 0:09:58]} 5...
Bg7 {[%clk 0:09:23.4]} 6. O-O {[%clk 0:09:59]} 6... Nge7 {[%clk 0:09:19.5]} 7.
d3 {[%clk 0:09:50.6]} 7... d6 {[%clk 0:09:15.9]} 8. Ne1 {[%clk 0:09:50.7]} 8...
Be6 {[%clk 0:09:05.6]} 9. Nc2 {[%clk 0:09:49.9]} 9... d5 {[%clk 0:08:35.4]} 10.
cxd5 {[%clk 0:09:47.7]} 10... Nxd5 {[%clk 0:08:34.9]} 11. Ne4 {[%clk 0:09:34.9]}
11... b6 {[%clk 0:06:49]} 12. Ng5 {[%clk 0:09:34]} 12... Bc8 {[%clk 0:05:47.4]}
13. Ne3 {[%clk 0:09:04.7]} 13... Nde7 {[%clk 0:05:30.1]} 14. a4 {[%clk
0:08:41.3]} 14... O-O {[%clk 0:05:25.8]} 15. Nc4 {[%clk 0:08:40.5]} 15... f5
{[%clk 0:04:20.9]} 16. f4 {[%clk 0:07:40]} 16... h6 {[%clk 0:03:49.5]} 17. Nf3
{[%clk 0:07:10.9]} 17... exf4 {[%clk 0:03:49.7]} 18. gxf4 {[%clk 0:07:09.2]}
18... Be6 {[%clk 0:03:42.2]} 19. Nfe5 {[%clk 0:06:37.1]} 19... Rc8 {[%clk
0:03:41.5]} 20. Ra3 {[%clk 0:04:57.4]} 20... Nxe5 {[%clk 0:03:30.4]} 21. Nxe5
{[%clk 0:04:45.5]} 21... Kh7 {[%clk 0:02:54.4]} 22. Nf3 {[%clk 0:04:11.8]} 22...
Nc6 {[%clk 0:02:48.6]} 23. e3 {[%clk 0:04:04.8]} 23... Qd7 {[%clk 0:02:45.8]}
24. Qe2 {[%clk 0:04:04.1]} 24... Rcd8 {[%clk 0:02:40]} 25. Rd1 {[%clk
0:03:59.9]} 25... Rfe8 {[%clk 0:02:38.8]} 26. Qf1 {[%clk 0:03:12.3]} 26... Bf7
{[%clk 0:02:10.5]} 27. Kh1 {[%clk 0:02:56.4]} 27... Na5 {[%clk 0:02:05.8]} 28.
d4 {[%clk 0:02:34.6]} 28... Nb3 {[%clk 0:01:40.5]} 29. Qd3 {[%clk 0:02:03.8]}
29... Bd5 {[%clk 0:01:05.1]} 30. Rxb3 {[%clk 0:01:20.2]} 30... c4 {[%clk
0:01:04.2]} 31. Qd2 {[%clk 0:01:05]} 31... cxb3 {[%clk 0:01:05]} 32. Qb4 {[%clk
0:00:57.1]} 32... Rc8 {[%clk 0:01:01.5]} 33. Bd2 {[%clk 0:00:54.8]} 33... Rc2
{[%clk 0:01:02]} 0-1

[Event "GrandPrix_29.05"]
[Site "Chess.com"]
[Date "2020.05.29"]
[Round "1"]
[White "AlexPapasimakopoulos"]
[Black "Sporty207"]
[Result "0-1"]
[WhiteElo "1198"]
[BlackElo "2237"]
[TimeControl "600+2"]
[EndTime "9:21:42 PDT"]
[Termination "Sporty207 won by resignation"]

1. d4 {[%clk 0:10:00.1]} 1... d5 {[%clk 0:10:00.5]} 2. c4 {[%clk 0:10:00.1]}
2... e6 {[%clk 0:10:00.1]} 3. Nc3 {[%clk 0:10:00.2]} 3... c6 {[%clk 0:10:00.1]}
4. e3 {[%clk 0:10:00.3]} 4... Nf6 {[%clk 0:09:58.9]} 5. Nf3 {[%clk 0:09:51.2]}
5... Nbd7 {[%clk 0:09:59.6]} 6. Qc2 {[%clk 0:09:50.8]} 6... Bd6 {[%clk
0:09:59.5]} 7. b3 {[%clk 0:09:24.8]} 7... O-O {[%clk 0:09:18]} 8. Bd3 {[%clk
0:09:18.1]} 8... e5 {[%clk 0:09:02.5]} 9. dxe5 {[%clk 0:09:18.2]} 9... Nxe5
{[%clk 0:09:00.4]} 10. Nxe5 {[%clk 0:09:12.4]} 10... Bxe5 {[%clk 0:09:02.3]} 11.
Bb2 {[%clk 0:09:09.5]} 11... Re8 {[%clk 0:08:08.3]} 12. O-O-O {[%clk 0:09:09]}
12... a5 {[%clk 0:08:02.7]} 13. Kb1 {[%clk 0:08:55.5]} 13... Be6 {[%clk
0:07:50.7]} 14. h3 {[%clk 0:07:48.6]} 14... Qe7 {[%clk 0:07:20.6]} 15. g4 {[%clk
0:07:36.4]} 15... a4 {[%clk 0:07:05.8]} 16. g5 {[%clk 0:07:11.6]} 16... axb3
{[%clk 0:07:05.6]} 17. axb3 {[%clk 0:07:09.8]} 17... dxc4 {[%clk 0:06:42.4]} 18.
bxc4 {[%clk 0:07:07.6]} 18... Nd7 {[%clk 0:06:31.7]} 19. f4 {[%clk 0:07:07.4]}
19... Nc5 {[%clk 0:05:42]} 20. Bxh7+ {[%clk 0:06:58.1]} 20... Kh8 {[%clk
0:05:42.6]} 21. fxe5 {[%clk 0:06:53.7]} 21... b5 {[%clk 0:05:42.2]} 22. cxb5
{[%clk 0:06:46.6]} 22... Bb3 {[%clk 0:05:35.6]} 23. Qf5 {[%clk 0:06:17.9]} 23...
Be6 {[%clk 0:05:35]} 24. Qc2 {[%clk 0:06:01.5]} 24... Bb3 {[%clk 0:05:35.7]} 25.
Qf5 {[%clk 0:06:03]} 25... Be6 {[%clk 0:05:36.6]} 26. Qf2 {[%clk 0:05:21.6]}
26... Kxh7 {[%clk 0:05:36]} 27. e4 {[%clk 0:05:19.8]} 27... cxb5 {[%clk
0:05:27.3]} 28. Rd6 {[%clk 0:04:51.4]} 28... Qa7 {[%clk 0:04:47]} 29. Rc6 {[%clk
0:04:39.4]} 29... Rec8 {[%clk 0:04:37.7]} 30. Rxc8 {[%clk 0:04:36]} 30... Rxc8
{[%clk 0:04:38.9]} 31. Rd1 {[%clk 0:04:07.8]} 31... b4 {[%clk 0:04:17.8]} 32.
Nd5 {[%clk 0:03:59.2]} 32... Ra8 {[%clk 0:03:56.6]} 33. Bd4 {[%clk 0:03:59.9]}
33... b3 {[%clk 0:03:27.3]} 34. g6+ {[%clk 0:03:10.8]} 34... fxg6 {[%clk
0:03:21.9]} 35. Qh4+ {[%clk 0:02:25.1]} 35... Kg8 {[%clk 0:03:21.7]} 36. Ne7+
{[%clk 0:02:26]} 36... Kf7 {[%clk 0:03:22.4]} 37. Rf1+ {[%clk 0:02:11.7]} 37...
Ke8 {[%clk 0:03:22.9]} 38. Rf2 {[%clk 0:01:42]} 38... Qa5 {[%clk 0:03:12]} 39.
Re2 {[%clk 0:01:26.9]} 39... Qa6 {[%clk 0:03:05.6]} 40. Qe1 {[%clk 0:00:23.2]}
40... Qd3+ {[%clk 0:02:16]} 41. Kc1 {[%clk 0:00:24.4]} 41... Qxd4 {[%clk
0:02:03.1]} 0-1